Cogmind - Beta 10.2 @@@ ROGUE MODE // 2021.10.27 @ 21:46:51 // Winter2019/RPGLIKE Player: SHOCK Result: Self-destructed Performance ------------- Evolutions (2) 1000 Regions Visited (5) 1000 Robots Destroyed (6) 30 Value Destroyed (322) 322 Prototype IDs (24) 480 Alien Tech Used (0) 0 Bonus (139) 139 TOTAL SCORE: 2971 Bonus ------- Aligned with FarCom 300 Friendly Fire -161 Cogmind --------- Core Integrity 553/650 Matter 227/350 Energy 286/290 System Corruption 0% Temperature Cool (130) Movement Flying (37) Location -8/Materials Parts ------- > --- POWER (1) -------- Nuclear Core > --- PROPULSION (2) --- Flight Unit Cesium-ion Thruster > --- UTILITY (4) ------ Advanced Weight Redist. System Advanced Visual Processing Unit Advanced Targeting Computer Cloak of Protection > --- WEAPON (2) ------- Improved Medium Laser Improved Medium Laser > --- INVENTORY (10) --- Superbattery (2000) Advanced Visual Processing Unit Chronowheel Ion Cannon Rocket Launcher Enhanced Flamer Mining Claw Peak State ------------ > --- POWER ------------ Nuclear Core > --- PROPULSION ------- Flight Unit Cesium-ion Thruster > --- UTILITY ---------- Superbattery Advanced Visual Processing Unit Advanced Targeting Computer Cloak of Protection > --- WEAPON ----------- Improved Medium Laser Improved Medium Laser > --- INVENTORY -------- Light Ion Engine Advanced Visual Processing Unit Chronowheel Ion Cannon Rocket Launcher Enhanced Flamer Mining Claw [Rating: 39] Favorites ----------- Power Light Ion Engine Engine Light Ion Engine Power Core Nuclear Core Propulsion Flight Unit Wheel Wheel Flight Unit Flight Unit Utility Cloak of Protection Device Cloak of Protection Storage Superbattery Processor Advanced Targeting Computer Weapon Small Laser Energy Gun Small Laser Energy Cannon Ion Cannon Special Weapon Enhanced Flamer Slashing Weapon Mining Claw Build | -11 -10 -10 -10 -9 -8 ------- Run | Scr Mat Min Exi Min Mat Slots Evolved 5 | 3 . . 2 . . Power . | . . . . . . Propulsion 1 | 1 . . . . . Utility 3 | 1 . . 2 . . Weapon 1 | 1 . . . . . Parts Attached 26 | 5 . . 6 . 15 Power 4 | 1 . . 1 . 2 Engine 2 | 1 . . 1 . . Core 2 | . . . . . 2 Reactor . | . . . . . . Propulsion 4 | 2 . . 1 . 1 Treads . | . . . . . . Leg . | . . . . . . Wheel 2 | 2 . . . . . Hover . | . . . . . . Flight 2 | . . . 1 . 1 Utility 7 | . . . 3 . 4 Device 4 | . . . 2 . 2 Storage 1 | . . . 1 . . Processor 2 | . . . . . 2 Hackware . | . . . . . . Protection . | . . . . . . Artifact . | . . . . . . Weapon 11 | 2 . . 1 . 8 Energy Gun 5 | 2 . . . . 3 Energy Cannon 1 | . . . . . 1 Ballistic Gun . | . . . . . . Ballistic Cannon . | . . . . . . Launcher . | . . . . . . Special Weapon 2 | . . . 1 . 1 Impact Weapon . | . . . . . . Slashing Weapon 3 | . . . . . 3 Piercing Weapon . | . . . . . . Special Melee Weapon . | . . . . . . Unidentified Prototypes 1 | . . . . . 1 Parts Lost . | . . . . . . Power . | . . . . . . Propulsion . | . . . . . . Utility . | . . . . . . Weapon . | . . . . . . Highest Loss Streak . | . . . . . . Average Slot Usage (%) 68 | . 71 71 58 55 84 Engine 9 | . 14 14 11 11 . Core 2 | . . . . . 10 Wheel 8 | . 28 28 2 . . Flight 9 | . . . 10 11 17 Device 8 | . . . 9 11 14 Storage 6 | . . . 10 11 7 Processor 4 | . . . . . 16 Energy Gun 11 | . 28 28 5 . 6 Special Weapon 4 | . . . 8 11 1 Slashing Weapon 2 | . . . . . 8 Naked Turns . | . . . . . . Heaviest Build 25 | 7 7 7 17 17 25 Greatest Support 39 | 20 30 30 30 24 39 Greatest Overweight (x) . | . . . . . . Average Overweight (x) . | . . . . . . Largest Inventory Capacity 10 | . 6 6 10 10 10 Average Capacity 8 | . 4 6 9 10 10 Most Carried 8 | . 3 5 6 5 8 Average Carried 5 | . 1 3 5 5 7 Final Capacity 10 | . 6 6 10 10 10 Final Carried 7 | . 3 5 6 5 7 Class Distribution -------------------- 36% | Mutant 31% | Hacker-Mutant 19% | Hacker-Ninja 12% | Hacker-Scout Dominant Class ---------------- Mutant | -10/Materials Mutant | -10/Mines Hacker-Mutant | -10/Exiles Hacker-Scout | -9/Mines Hacker-Ninja | -8/Materials Resources | -11 -10 -10 -10 -9 -8 ----------- Run | Scr Mat Min Exi Min Mat Matter Collected 387 | 250 . 50 . 17 70 Remotely . | . . . . . . Salvage Created 138 | . . 46 . . 92 Parts 10 | . . 4 . . 6 Haulers Intercepted . | . . . . . . Recyclers Shooed 1 | . . 1 . . . Parts Field Recycled . | . . . . . . Retrieved Matter . | . . . . . . Parts Self-Destructed . | . . . . . . Prevented . | . . . . . . Kills | -11 -10 -10 -10 -9 -8 ------- Run | Scr Mat Min Exi Min Mat Combat Hostiles Destroyed 3 | . . 2 . . 1 Guns 2 | . . 2 . . . Cannons 1 | . . . . . 1 Classes Destroyed 5 | . . 1 . . 4 Worker 1 | . . . . . 1 Operator 1 | . . . . . 1 Watcher 1 | . . . . . 1 Grunt 2 | . . 2 . . . Sentry 1 | . . . . . 1 Best Kill Streak 2 | . . 1 . . 2 Combat Bots Only 1 | . . 1 . . 1 Max Kills in Single Turn 3 | . . 1 . . 3 Gunslinging . | . . . . . . Exploded . | . . . . . . Melee . | . . . . . . Uniques/NPCs Destroyed . | . . . . . . Combat | -11 -10 -10 -10 -9 -8 -------- Run | Scr Mat Min Exi Min Mat Damage Taken 251 | . . 151 . . 100 Core 220 | . . 123 . . 97 Absorbed by Shields . | . . . . . . Redirected to Core 101 | . . 90 . . 11 Core Remaining (%) 100 | 100 . . . 100 . Volleys Fired 18 | . 2 9 2 . 5 Largest 2 | . 2 2 1 . 2 Hottest 140 | . 80 80 80 . 140 Shots Fired 34 | . 4 18 2 . 10 Gun 28 | . 4 18 . . 6 Cannon 2 | . . . . . 2 Launcher . | . . . . . . Special 4 | . . . 2 . 2 Kinetic . | . . . . . . Thermal 34 | . 4 18 2 . 10 Explosive . | . . . . . . Electromagnetic . | . . . . . . Robot Hit Streak 9 | . 1 9 . . 6 Robot Miss Streak 2 | . 1 2 . . 2 Penetration Max . | . . . . . . Secondary Targets . | . . . . . . Shots Hit Robots 22 | . 2 14 . . 6 Core Hits 13 | . 1 6 . . 6 Critical Hits . | . . . . . . Critical Kills . | . . . . . . Critical Parts Destroyed . | . . . . . . Melee Attacks 53 | . . . . . 53 Impact . | . . . . . . Slashing 53 | . . . . . 53 Piercing . | . . . . . . Sneak Attacks . | . . . . . . Combat Hostiles . | . . . . . . Follow-up Attacks . | . . . . . . Damage Inflicted 693 | . 20 169 . . 504 Guns 225 | . 20 154 . . 51 Cannons 45 | . . . . . 45 Explosions 396 | . . . . . 396 Melee . | . . . . . . Ramming 15 | . . 15 . . . Kinetic . | . . . . . . Thermal 678 | . 20 154 . . 504 Explosive . | . . . . . . Electromagnetic . | . . . . . . Impact . | . . . . . . Slashing . | . . . . . . Piercing . | . . . . . . Highest Corruption . | . . . . . . Average Corruption . | . . . . . . Corruption Purged . | . . . . . . Overload Shots . | . . . . . . Overflow Damage 89 | . . . . . 89 Projectiles . | . . . . . . Explosions 89 | . . . . . 89 Melee . | . . . . . . Knockbacks . | . . . . . . Impact . | . . . . . . Kinetic . | . . . . . . Secondary . | . . . . . . Self-Inflicted Damage 93 | . . 7 . . 86 Shots 1 | . . . . . 1 Rammed 2 | . . 2 . . . Targets Rammed 2 | . . 2 . . . Kicked . | . . . . . . Crushed . | . . . . . . Highest Temperature 192 | . 36 192 66 . 142 Average Temperature 66 | . 20 87 36 . 58 Received Heat Transfer 84 | . . 75 . . 9 Siege Activations . | . . . . . . Robots Corrupted . | . . . . . . Combat Hostiles . | . . . . . . Parts Fried . | . . . . . . Impact Corruptions . | . . . . . . Robots Melted . | . . . . . . Combat Hostiles . | . . . . . . Parts Melted . | . . . . . . Heat Transferred 965 | . 50 350 . . 565 Parts Sabotaged . | . . . . . . Parts Stolen . | . . . . . . Parts Stripped . | . . . . . . Power Chain Reactions . | . . . . . . Missiles Intercepted . | . . . . . . Alert | -11 -10 -10 -10 -9 -8 ------- Run | Scr Mat Min Exi Min Mat Peak Influence 344 | . 23 73 . 15 344 Initial 8 | . . 8 . . 5 Average 18 | . 18 16 . . 26 Maximum Alert Level 1 | . . . . . 1 Low Security (%) 99 | 100 100 100 . 100 99 Level 1 . | . . . . . . Level 2 . | . . . . . . Level 3 . | . . . . . . Level 4 . | . . . . . . Level 5 . | . . . . . . High Security . | . . . . . . Max Security . | . . . . . . Squads Dispatched 3 | . 1 . . . 2 Investigation 1 | . 1 . . . . Extermination . | . . . . . . Reinforcement 1 | . . . . . 1 Assault 1 | . . . . . 1 Garrison . | . . . . . . Intercept . | . . . . . . Construction Impeded . | . . . . . . Haulers Reinforced . | . . . . . . Stealth | -11 -10 -10 -10 -9 -8 --------- Run | Scr Mat Min Exi Min Mat Distress Signals 1 | . . . . . 1 Communications Jammed . | . . . . . . Distress Signals . | . . . . . . Times Spotted 13 | . 4 2 . 1 6 Peak Tracking Total 4 | . 4 2 . 1 3 Tactical Retreats 1 | . . . . 1 . Traps | -11 -10 -10 -10 -9 -8 ------- Run | Scr Mat Min Exi Min Mat Traps Triggered 1 | . 1 . . . . Indirectly . | . . . . . . Trap Hack Attempts . | . . . . . . Triggered . | . . . . . . Disarmed . | . . . . . . Reprogrammed . | . . . . . . Reused . | . . . . . . Traps Extracted . | . . . . . . Installed . | . . . . . . Triggered . | . . . . . . Machines | -11 -10 -10 -10 -9 -8 ---------- Run | Scr Mat Min Exi Min Mat Machines Disabled 8 | . . . . . 8 Max in Single Turn 8 | . . . . . 8 Garrison Access 1 | . . . . . 1 Machines Sabotaged . | . . . . . . Garrisons Compromised . | . . . . . . Overloaded Fab Kills . | . . . . . . Fab Network Shutdowns . | . . . . . . Hacking | -11 -10 -10 -10 -9 -8 --------- Run | Scr Mat Min Exi Min Mat Machines Accessed 6 | . 2 . 2 . 2 Terminals 4 | . 2 . . . 2 Fabricators . | . . . . . . Repair Stations . | . . . . . . Recycling Units . | . . . . . . Scanalyzers . | . . . . . . Garrison Access . | . . . . . . Total Hacks 27 | . 5 . 4 . 18 Successful 18 | . 3 . 4 . 11 Failed 9 | . 2 . . . 7 Catastrophic . | . . . . . . Database Lockouts . | . . . . . . Manual 22 | . 5 1 1 . 15 Terminals 23 | . 5 . . . 18 Fabricators . | . . . . . . Repair Stations . | . . . . . . Recycling Units . | . . . . . . Scanalyzers . | . . . . . . Garrison Access . | . . . . . . Terminal Hacks 9 | . 1 . 4 . 4 Record 3 | . . . 3 . . Terminal Index 2 | . 1 . . . 1 Garrison Index 1 | . . . . . 1 Patrol Status 1 | . . . . . 1 Recall Reinforcements 1 | . . . . . 1 EX-Prototype ID Bank 1 | . . . 1 . . Fabricator Hacks . | . . . . . . Repair Station Hacks . | . . . . . . Recycling Unit Hacks . | . . . . . . Scanalyzer . | . . . . . . Garrison Access Hacks . | . . . . . . Unauthorized Hacks 9 | . 2 . . . 7 Terminals 9 | . 2 . . . 7 Track 2 | . . . . . 2 Assimilate 2 | . . . . . 2 Botnet 3 | . 1 . . . 2 Operators 2 | . 1 . . . 1 Fabricators . | . . . . . . Repair Stations . | . . . . . . Recycling Units . | . . . . . . Scanalyzers . | . . . . . . Garrison Access . | . . . . . . Data Cores Recovered . | . . . . . . Used . | . . . . . . Hacking Detections 2 | . 1 . . . 1 Full Trace Events . | . . . . . . Feedback Events . | . . . . . . Feedback Blocked . | . . . . . . Robot Schematics Acquired . | . . . . . . Robots Built . | . . . . . . Matter . | . . . . . . Time . | . . . . . . Total Robot Build Rating . | . . . . . . Part Schematics Acquired . | . . . . . . Parts Built . | . . . . . . Matter . | . . . . . . Time . | . . . . . . Total Part Build Rating . | . . . . . . Parts Repaired . | . . . . . . Time . | . . . . . . Parts Recycled . | . . . . . . Recycled Matter . | . . . . . . Retrieved Matter . | . . . . . . Retrieved Components . | . . . . . . Parts Scanalyzed . | . . . . . . Part Schematics Acquired . | . . . . . . Parts Damaged . | . . . . . . Bothacking | -11 -10 -10 -10 -9 -8 ------------ Run | Scr Mat Min Exi Min Mat Used RIF Installer . | . . . . . . Robots Hacked . | . . . . . . Non-combat . | . . . . . . Combat . | . . . . . . Robot Hacks Applied . | . . . . . . Relay Couplers Released 1 | . . . . . 1 Machine Destruction 1 | . . . . . 1 Robots Rewired . | . . . . . . Allies Hacked . | . . . . . . Hacks Repelled . | . . . . . . Allies | -11 -10 -10 -10 -9 -8 -------- Run | Scr Mat Min Exi Min Mat Total Allies 1 | . . . . . 1 Largest Group 1 | . . . . . 1 Highest-Rated Group 10 | . . . . . 10 Highest-Rated Ally 10 | . . . . . 10 Total Orders . | . . . . . . Ally Attacks . | . . . . . . Total Damage . | . . . . . . Kills . | . . . . . . Allies Corrupted . | . . . . . . Allies Melted . | . . . . . . Intel | -11 -10 -10 -10 -9 -8 ------- Run | Scr Mat Min Exi Min Mat Robot Analysis Total . | . . . . . . Derelict Logs Recovered 4 | . . 2 . 2 . Drone Launches . | . . . . . . Drone Recoveries . | . . . . . . Exploration | -11 -10 -10 -10 -9 -8 ------------- Run | Scr Mat Min Exi Min Mat Turns Passed 3073 | 70 320 495 1206 221 761 Spaces Moved 4569 | 80 389 556 2039 522 983 Core 3 | 3 . . . . . Treads . | . . . . . . Legs . | . . . . . . Wheels 1144 | 77 389 556 122 . . Hover . | . . . . . . Flight 3422 | . . . 1917 522 983 Fastest Speed 37 | 50 80 80 40 40 37 Average Speed 49 | 78 80 80 42 40 38 Slowest Speed 80 | 80 80 80 80 40 40 Overloaded Moves . | . . . . . . Propulsion Burnouts . | . . . . . . Robots Hopped 22 | . . . . 17 5 Cave-ins Triggered . | . . . . . . Exploration Rate (%) 58 | 4 47 97 95 77 32 Regions Visited 5 Branch Regions 3 Pre-discovered Areas 2 | . . 1 1 . . Known Exits Taken . | . . . . . . Unknown Exits Taken 5 | 1 1 1 1 1 . Scrap Searched 3 | . . 1 . 2 . Spaces Dug 35 | . . . . . 35 Terrain Destroyed 59 | . . . . . 59 Melee 35 | . . . . . 35 Projectile . | . . . . . . AOE 24 | . . . . . 24 Terrain Rammed . | . . . . . . Walls Destroyed . | . . . . . . Machines Disabled . | . . . . . . Actions | -11 -10 -10 -10 -9 -8 --------- Run | Scr Mat Min Exi Min Mat Total 5204 | 84 393 587 2377 516 1247 Wait 526 | . . 13 323 12 178 Move 4521 | 79 388 555 2038 488 973 Hop 21 | . . . . 16 5 Pick Up 11 | . 3 2 2 . 4 Fast Attach 14 | 5 . . 2 . 7 Attach 9 | . . . 2 . 7 Detach 11 | . . . 2 . 9 Swap 3 | . . . 2 . 1 Drop 9 | . . . 4 . 5 Fire 18 | . 2 9 2 . 5 Melee 53 | . . . . . 53 Ram 2 | . . 2 . . . Kick . | . . . . . . Crush . | . . . . . . Escape Stasis . | . . . . . . Rewire . | . . . . . . Trap . | . . . . . . Miscellaneous 6 | . . 6 . . . Route ------- -11/Scrapyard -10/Materials (discovered 2 exits: [*Mat] / *Min) -10/Mines (discovered 3 exits: [*Mat x2] / *Exi) -10/Exiles (discovered 2 exits: [*Min x2]) -9/Mines (discovered 2 exits: *Mat x2) -8/Materials (discovered 1 exit: Sto) History --------- Turn | Location | Event 2 | -11/Scrapyard | Upgraded with Propulsion slot (x1) 2 | -11/Scrapyard | Upgraded with Utility slot (x1) 2 | -11/Scrapyard | Upgraded with Weapon slot (x1) 19 | -11/Scrapyard | Discovered new exit (range 15) 71 | -11/Scrapyard | Entered Materials 300 | -10/Materials | Build established: Mutant 380 | -10/Materials | Discovered new exit (range 12) 381 | -10/Materials | Discovered new exit (range 17) 391 | -10/Materials | Entered Mines 401 | -10/Mines | Met a Derelict bent on vengeance 424 | -10/Mines | Discovered new exit (range 20) 649 | -10/Mines | Received a Rocket Launcher from a helpful Derelict 668 | -10/Mines | Discovered new exit (range 13) 680 | -10/Mines | Learned Materials trap positions 754 | -10/Mines | A weapon hastily lodged in a ceiling crevice suddenly fell to the ground 848 | -10/Mines | Deemed a non-threat by the Exiles lab entrance 881 | -10/Mines | Discovered new exit (range 5) 886 | -10/Mines | Entered Exiles 897 | -10/Exiles | Discovered new exit (range 16) 906 | -10/Exiles | Met 8R-AWN 919 | -10/Exiles | Met EX-HEX 943 | -10/Exiles | Met EX-BIN 951 | -10/Exiles | Aligned with FarCom system 952 | -10/Exiles | Given EX-Vault access code 971 | -10/Exiles | Opened EX-Vault 979 | -10/Exiles | Found Cloak of Protection 982 | -10/Exiles | Found Chronowheel 990 | -10/Exiles | Found Superbattery 1105 | -10/Exiles | Warned to stay clear of 0b10 Research branches 1110 | -10/Exiles | Upgraded with Utility slot (x2) 1133 | -10/Exiles | Met EX-DEC 1150 | -10/Exiles | Visited The Gauntlet 1215 | -10/Exiles | Discovered new exit (range 10) 1284 | -10/Exiles | Learned location of Zion (-7) 1421 | -10/Exiles | Build established: Hacker-Mutant 2092 | -10/Exiles | Stole three prototypes: Superbattery, Cloak of Protection, Chronowheel 2092 | -10/Exiles | Entered Mines 2094 | -9/Mines | Reached level 2 2095 | -9/Mines | Learned location of 1 exit from Proximity Caves 2108 | -9/Mines | Learned location of 1 exit from Materials 2130 | -9/Mines | Discovered new exit (range 10) 2221 | -9/Mines | Discovered new exit (range 12) 2313 | -9/Mines | Entered Materials 2314 | -8/Materials | Identified exit to Storage 2315 | -8/Materials | Loaded intel: 13 trap records 2315 | -8/Materials | Reached level 3 3072 | -8/Materials | Reached level 4 3074 | -8/Materials | Self-destructed Last Messages --------------- 03072_ Fusion Modulator explodes. 03072_ Lgt. Armor Plating tumbles out of recycling unit. 03072_ Recycling Unit disabled. 03072_ K-01 Serf destroyed. 03072_ Fusion Modulator explodes. 03072_ Imp. Ion Engine tumbles out of recycling unit. 03072_ Fusion Modulator explodes. 03072_ W-25 Informer destroyed. 03072_ Fusion Modulator explodes. 03072_ Technician 3a destroyed. 03072_ ALERT: Garrison Access compromised, dispatching assault squad. 03072_ Garrison Access disabled. 03072_ Reached level 4. 03072_ Relay Coupler [Hunter] tumbles out of Garrison Access. 03073_ K-01 Serf collects debris. 03074_ K-01 Serf cleans the Terminal. 03074_ K-01 Serf collects debris. 03074_ Connecting with Terminal... >>Index(Garrisons) No garrison accesses found. Map ----- +----------------------------------------------------+ | ???????^? ????????????????????????????????????? | | ???????^? ??#####?????????????????????????????? | | ?????????# ?#%%%%##????????????????????????????? | | ?????????# ?% %#????????????????????????????? | | ?????????# ?% %#????????????????????????????? | | ?????????# # #????????????????????????????? | | ?????????# ?????????????????????????????? | | ?????????# ???????????????????????????????? | | ??????????? ??????????o??????????????????????? | | ????????????# #??????????????????????????????????? | | ????????????# #??????????????????????????????????? | | ????????????# #??????????????????????????????????? | | ????????????# #?a????????????????????????????????? | | ????????????# #??????????????????????????????????? | | ????????????# #?????????????????????????????t????? | | ????????????#w#??????????????????????????????????? | | ????????????# #??????????????????????????????????o | | ????????????# #??????????????????????????????????? | | ????????????# #?????????????????t????????####????? | | ???###??###?# #??#+#???????????????????? ?????? | | ###########?# #??#Y ??????????????????? r???????? | | #?# #??# ######?????######?? ????????? | | #?# #### k#" "##????# #? #?????????? | | """ """ #?# ## ; ;k ;####?# "" # w??????????? | | """ """ ### ;; ;;*!*;"T"### T" + ????????????? | | """ """ # % @ # "" #?????????????? | | # *# #?????????????? | | """ """ ; ! "" # #?????????????? | | """ """ ; + #?????????????? | | """ """ ; # #?????????????? | | ; ######?????????????? | | ; #??????????????????? | | ! ;; ?????????????? | | ##########k; #?????????? | | ####### g +?????????? | | g ] #?????????? | | #######g #?????????? | | ?########+##; ; #?????????? | | ?# ###"G"# #?????????? | | ?# """ #?#"""##########a ###########?????????? | | ?# ** """ #######????????# #???????????????????? | | ?# * """ ##?????????????# #???????????????????? | | ?# * ##?????????????# ou#???????????????????? | | ?# """ #??????????????# #???????????????????? | | ##= """ #?????????????? ???????????????????? | | ## """ ##????????????? ???????????????????? | | ## ##????????????? kT ???????????????????? | | ?###########????????????? ???????????????????? | | ??#### ####?????????????# ???????????????????? | | ?????###????????????????### ###??????????????????? | +----------------------------------------------------+ Best States ------------- Heat Dissipation 25 Energy Generation 24 Energy Capacity 2300 Matter Stores 350 Matter Capacity 350 Sight Range 24 Robot Scan Range 20 Terrain Scan Density 10 Cloak Strength 5 Additional Mass Support 9 Evasion (%) 62 Targeting Accuracy 8 Offensive Hacking 25 Defensive Hacking 20 Item Schematics ----------------- None Robot Schematics ------------------ None Fabricated ------------ Nothing Alien Tech Used ----------------- None Achievements -------------- Part-time Excavator Challenges ------------ None RPGLIKE | -11 -10 -10 -10 -9 -8 --------- Run | Scr Mat Min Exi Min Mat Levels Raised 3 | . . . . 1 2 XP Earned 7635 | 3000 . 750 350 575 2960 XP Spent 30650 | 2800 9950 . 15000 . 2900 Upgrades 47 | 11 22 . 11 . 3 Propulsion Slot 1 | 1 . . . . . Utility Slot 3 | 1 . . 2 . . Weapon Slot 1 | 1 . . . . . Core Integrity 1 | . 1 . . . . Energy Generation 2 | . 2 . . . . Energy Storage 1 | . 1 . . . . Matter Storage 1 | . 1 . . . . Mass Support 4 | . 2 . 2 . . Inventory Capacity 10 | . 6 . 4 . . Sight Range 4 | . 4 . . . . Sensor Range 10 | 5 5 . . . . Hack Attack % 5 | 2 . . 1 . 2 Hack Defense % 4 | 1 . . 2 . 1 Protomatter Created 56 | . . 56 . . . Integrity Restored 123 | . . 123 . . . Core 123 | . . 123 . . . Protomatter Decayed 15 | . . 15 . . . Game ------ Seed AdvancedTitaniumSheargun Manual? 0 Play Time 00:52:40 Cumulative 6.7 hours Start 2021.10.27 @ 17:25:57 End 2021.10.27 @ 21:46:51 Sessions 9 Manual Loads 0 Difficulty Rogue Special Mode Winter2019/RPGLIKE Game No. 11 Rogue 11 Adventurer 0 Explorer 0 Win Type - Total 0 Types 0/0/0/0/0/0/0/0/0 Lore% 25 Gallery% 20 Achievement% 62 Wizard Run 0 Options --------- ASCII 0 Keyboard 0 Movement Arrows Keybinds 0 Fullscreen 2 Font 18/X11 Map View 76x50 Tactical HUD 1 Map Filters NONE Filters NONE Steam 1 RUN: a838ce72-23fc-4d6b-a793-b94efbb9917a